bitfinex-derivatives/quotes_SOLF0:USTF0_20250518
["timestamp","ask_amount","ask_price","bid_price","bid_amount"]
[1747596750076,4.96941349,168.3,168.14,3.9042]
[1747596750379,4.96941349,168.3,168.14,1.9901]
[1747596750877,28.56459042,168.3,168.14,1.9901]
[1747596751081,4.96941349,168.29,168.14,1.9901]
[1747596751375,4.96941349,168.29,168.16,23.57454529]
[1747596751989,4.96941349,168.29,168.2,23.57454529]
[1747596752168,5.39171744,168.32,168.22,23.55846944]
[1747596752373,5.39171744,168.32,168.23,1.9234]
[1747596752575,5.39171744,168.32,168.3,5.9397]
[1747596752773,5.39171744,168.32,168.24,1.9189]
[1747596753185,5.39171744,168.32,168.3,5.9394]
[1747596754080,5.39171744,168.32,168.24,1.9189]
[1747596754379,1.9673,168.38,168.24,1.9189]
[1747596755180,7.9043,168.38,168.24,1.9189]
[1747596755368,1.9673,168.38,168.24,1.9189]
[1747596756288,1.8799,168.39,168.31,5.9391]
[1747596756487,1.8799,168.39,168.24,1.9189]
[1747596756985,1.8799,168.39,168.12,11.01048389]
[1747596757287,23.55791805,168.34,168.13,6.0082]
[1747596757585,5.9394,168.31,168.13,6.0082]
[1747596757885,2.0041,168.3,168.15,23.55791805]
[1747596758180,2.0041,168.3,168.16,513.26]
[1747596758580,12.09814984,168.38,168.21,23.55791805]
[1747596758888,12.09814984,168.38,168.16,513.26]
[1747596759072,7.18895658,168.38,168.23,23.55791805]
[1747596759389,7.18895658,168.38,168.24,2.0227]
[1747596759977,5.9385,168.34,168.25,5.9411]
[1747596760182,1.8817,168.37,168.24,2.0227]
[1747596760988,4.89040004,168.36,168.24,2.0227]
[1747596762281,4.89040004,168.35,168.16,513.26]
[1747596762484,23.55791805,168.34,168.17,1.8648]
[1747596762890,1.8863,168.33,168.17,1.8648]
[1747596763184,23.55791805,168.3,168.17,1.8648]
[1747596763384,5.9408,168.27,168.18,5.9437]
[1747596763592,2.0383,168.29,168.17,1.8648]
[1747596763779,1.9979,168.28,168.17,1.8648]
[1747596764584,7.9386,168.28,168.17,1.8648]
[1747596764985,1.9979,168.28,168.21,5.9428]
[1747596765687,7.9383,168.28,168.17,1.8648]
[1747596765882,1.9979,168.28,168.17,1.8648]
[1747596766286,1.9979,168.28,168.19,5.9432]
[1747596766485,1.9979,168.28,168.16,513.26]
[1747596766686,1.9979,168.28,168.12,1.8912]
[1747596766884,23.5915447,168.27,168.12,1.8912]
[1747596767883,4.88224241,168.26,168.12,1.8912]
[1747596768484,4.88224241,168.26,168.18,5.9439]
[1747596768688,4.88224241,168.26,168.12,1.8912]
[1747596768894,5.941,168.27,168.19,5.9435]
[1747596769192,1.9979,168.28,168.12,1.8912]
[1747596769392,1.9979,168.28,168.16,5.9446]
[1747596769894,1.9979,168.28,168.12,1.8912]
[1747596770488,5.9415,168.25,168.12,1.8912]
[1747596771091,5.9411,168.26,168.18,5.9438]
[1747596771286,4.87959738,168.27,168.12,1.8912]
[1747596771593,10.82059738,168.27,168.12,1.8912]
[1747596771788,4.87959738,168.27,168.12,1.8912]
[1747596771989,4.87959738,168.26,168.18,5.9439]
[1747596772192,28.48286016,168.26,168.07,513.34]
[1747596772393,23.60925376,168.24,168.07,513.34]
[1747596772590,1.8687,168.23,168.07,513.34]
[1747596772795,1.8687,168.23,168.04,5.9671]
[1747596772994,23.62338332,168.19,168.01,11.01048389]
[1747596773191,25.48210935,168.23,167.97,3.99022461]
[1747596773498,25.48210935,168.23,167.8,23.61987141]
[1747596773499,3080.84,168.22,167.8,23.61987141]
[1747596773699,23.61987141,168.08,167.9,2.0108]
[1747596773891,23.61987141,168.1,167.91,1.19111428]
[1747596774091,23.61987141,168.06,167.95,5.9519]
[1747596774293,23.61987141,168.07,167.91,1.19111428]
[1747596774910,23.61987141,168.12,167.91,1.19111428]
[1747596775114,23.61987141,168.14,167.91,1.19111428]
[1747596775611,5.9457,168.13,167.92,23.61987141]
[1747596775809,23.61987141,168.14,167.92,23.61987141]
[1747596776017,537.07987141,168.16,167.93,2.0337]
[1747596776209,513.46,168.16,167.93,2.0337]
[1747596776404,5.9459,168.13,168.02,5.9495]
[1747596776612,5.9459,168.13,167.93,2.0337]
[1747596777116,23.61987141,168.15,167.93,2.0337]
[1747596777719,23.61987141,168.21,167.96,23.61987141]
[1747596777907,2.72219226,168.2,167.97,1.8686]
[1747596778109,5.9453,168.15,167.97,1.8686]
[1747596778411,23.61987141,168.19,167.97,1.8686]
[1747596778610,1.7159,168.2,167.97,1.8686]
[1747596778912,5.9451,168.15,167.97,1.8686]
[1747596780230,23.61987141,168.18,167.97,1.8686]
[1747596780414,25.33577141,168.2,167.97,1.8686]
[1747596780619,23.61987141,168.2,168.0,23.61987141]
[1747596780919,23.61987141,168.24,168.01,517.6629]
[1747596781119,23.61987141,168.24,168.04,23.61987141]
[1747596781319,5.9425,168.23,168.04,23.61987141]
[1747596781526,23.61987141,168.24,168.04,23.61987141]
[1747596781912,5.9422,168.23,168.14,5.9453]
[1747596782120,25.33347141,168.26,168.04,23.61987141]
[1747596782314,513.74,168.33,168.06,23.59354173]
[1747596782514,5.941,168.27,168.17,5.9439]
[1747596782711,5.941,168.27,168.07,1.9103]
[1747596783320,23.59354173,168.3,168.07,1.9103]
[1747596783521,23.59280169,168.2,168.07,1.9103]
[1747596783719,23.59280169,168.16,168.07,1.9103]
[1747596783922,29.53740169,168.16,168.07,1.9103]
[1747596784221,23.59280169,168.16,168.08,5.9474]
[1747596784418,23.59280169,168.16,168.07,1.9103]
[1747596784817,23.59280169,168.21,168.07,1.9103]
[1747596785223,23.59280169,168.15,168.07,1.9103]
[1747596785812,23.59280169,168.15,168.01,517.6629]
[1747596786017,23.59280169,168.15,168.02,2.0015]
[1747596786219,23.59280169,168.15,168.07,5.9478]
[1747596786424,23.59280169,168.15,168.02,2.0015]
[1747596786621,29.53810169,168.15,168.02,2.0015]
[1747596786828,23.59280169,168.15,168.02,2.0015]
[1747596787513,23.59280169,168.11,168.02,2.0015]
[1747596787720,5.9466,168.11,168.02,7.951]
[1747596787921,5.9466,168.11,168.02,2.0015]
[1747596788121,1.7108,168.2,168.02,2.0015]
[1747596788422,23.63549339,168.12,168.02,2.0015]
[1747596789929,23.63549339,168.12,168.05,5.9485]
[1747596790227,23.63549339,168.12,168.02,2.0015]
[1747596791828,23.63549339,168.12,168.04,5.9485]
[1747596792328,23.63549339,168.12,168.02,2.0015]
[1747596792629,23.63549339,168.14,168.02,2.0015]
[1747596792928,23.63549339,168.14,168.07,5.9477]
[1747596793131,23.63549339,168.14,168.02,2.0015]
[1747596793626,1.7108,168.2,168.02,2.0015]
[1747596793823,23.63549339,168.16,168.02,2.0015]
[1747596794829,23.63549339,168.16,168.09,5.9471]
[1747596795026,23.63549339,168.16,168.02,2.0015]
[1747596795528,23.63549339,168.16,168.08,5.9474]
[1747596795830,29.58049339,168.16,168.06,5.9478]
[1747596796031,23.63549339,168.16,168.02,2.0015]
[1747596796531,29.58009339,168.16,168.02,2.0015]
[1747596796731,23.63549339,168.16,168.02,2.0015]
[1747596797633,23.63549339,168.16,168.09,5.9469]
[1747596797831,23.63395108,168.1,167.85,11.9109]
[1747596798133,23.63395108,168.03,167.86,5.8548]
[1747596798431,23.63395108,167.98,167.86,5.8548]
[1747596798627,23.67782566,167.97,167.86,5.8548]
[1747596798827,23.68037029,167.96,167.88,5.9544]
[1747596799027,23.68471344,167.95,167.86,3.932]
[1747596799227,23.69399442,167.91,167.81,6.0164]
[1747596799539,513.82,168.02,167.76,14.61559138]
[1747596799835,23.69399442,167.92,167.84,5.9556]
[1747596800033,23.69399442,167.92,167.77,2.0393]
[1747596800422,23.69399442,167.88,167.77,2.0393]
[1747596800627,23.69399442,167.88,167.76,14.61559138]
[1747596800628,23.69399442,167.84,167.76,14.61559138]
[1747596801132,23.69399442,167.84,167.76,20.57409138]
[1747596801330,23.69399442,167.81,167.76,12.89379138]
[1747596801530,23.69399442,167.85,167.74,160.68689541]
[1747596801734,23.69399442,167.89,167.74,160.68689541]
[1747596804245,23.69399442,167.94,167.74,160.68689541]
[1747596804431,30.882951,168.03,167.74,160.68689541]
[1747596804731,7.18895658,168.03,167.82,23.65949127]
[1747596804932,7.18895658,168.03,167.87,23.65897427]
[1747596805127,1.58793488,168.06,167.94,23.65897427]
[1747596805330,3.488e-05,168.06,168.05,5.9485]
[1747596807034,3.488e-05,168.06,167.95,518.2026]
[1747596809142,23.63544962,168.16,167.95,518.2026]
[1747596809437,5.9453,168.15,167.95,518.2026]
[1747596809637,23.63544962,168.16,167.98,23.63544962]
[1747596809834,23.63544962,168.16,168.06,5.948]
[1747596810136,23.63544962,168.16,167.98,23.63544962]
[1747596810338,23.63544962,168.16,167.99,2.0169]
[1747596810639,23.63544962,168.13,167.99,2.0169]
[1747596811337,4.84240924,168.15,167.99,2.0169]
[1747596812340,23.63544962,168.16,167.99,2.0169]
[1747596813135,23.63544962,168.21,167.99,2.0169]
[1747596813437,23.63544962,168.22,168.0,23.63544962]
[1747596813637,23.63544962,168.26,168.04,23.63544962]
[1747596813839,23.63544962,168.39,168.05,4.0067]
[1747596814035,5.9412,168.26,168.05,4.0067]
[1747596814244,23.63544962,168.28,168.08,23.63544962]
[1747596814541,5.9396,168.31,168.09,515.8767]
[1747596814743,23.63544962,168.34,168.12,23.63544962]
[1747596815541,5.9397,168.31,168.09,515.8767]
[1747596815844,23.63544962,168.3,168.1,23.63544962]
[1747596816032,5.9407,168.28,168.1,23.63544962]
[1747596816236,1.18856599,168.27,168.1,23.63544962]
[1747596817142,1.18856599,168.27,168.21,5.9427]
[1747596817444,1.18856599,168.27,168.1,23.63544962]
[1747596817644,7.12936599,168.27,168.19,5.9435]
[1747596817846,1.18856599,168.27,168.1,23.63544962]
[1747596819246,1.18856599,168.27,168.21,5.9429]
[1747596819538,1.18863663,168.26,168.15,23.63544962]
[1747596819742,1.18863663,168.26,168.16,2.0561]
[1747596819937,1.18863663,168.26,168.25,5.9414]
[1747596821048,1.18863663,168.26,168.16,2.0561]
[1747596821641,1.18863663,168.26,168.25,5.9414]
[1747596821844,1.18863663,168.26,168.16,2.0561]
[1747596822742,1.18863663,168.26,168.25,5.9414]
[1747596823144,513.68,168.47,168.27,5.9406]
[1747596823440,23.58242675,168.37,168.16,2.0561]
[1747596823749,29.51992675,168.37,168.28,5.9401]
[1747596823944,1.1785,168.45,168.22,513.56]
[1747596824245,23.58242675,168.44,168.23,1.9667]
[1747596824636,23.58242675,168.4,168.24,1.8883]
[1747596824839,23.58242675,168.36,168.24,1.8883]
[1747596825147,27.0,168.44,168.24,25.43506704]
[1747596825348,5.35176041,168.46,168.25,2.0592]
[1747596825542,1.18722545,168.46,168.25,2.0592]
[1747596825749,1.18722545,168.46,168.25,25.60596704]
[1747596825944,5.9362,168.4,168.32,5.939]
[1747596826248,50.54676704,168.45,168.25,2.0592]
[1747596826449,5.9368,168.39,168.31,5.9391]
[1747596826749,27.0,168.44,168.26,23.54798994]
[1747596826948,27.0,168.44,168.33,5.9383]
[1747596827342,27.0,168.44,168.25,2.0592]
[1747596827343,50.55735602,168.44,168.25,2.0592]
[1747596827645,23.56676782,168.41,168.24,1.8883]
[1747596827943,23.5843471,168.35,168.17,1.9933]
[1747596828149,23.5843471,168.35,168.17,3.9877]
[1747596828348,23.5843471,168.31,168.17,3.9877]
[1747596828851,23.5843471,168.31,168.17,1.9944]
[1747596830549,23.5843471,168.31,168.13,2.0613]
[1747596830853,5.9422,168.23,168.12,513.42]
[1747596831051,23.5843471,168.27,168.12,513.42]
[1747596831345,5.9426,168.22,168.12,513.42]
[1747596831553,1.1767,168.3,168.12,513.42]
[1747596831945,1.1767,168.3,168.0,1.03491346]
[1747596831946,23.5843471,168.29,168.0,1.03491346]
[1747596832148,1.1767,168.3,167.83,3080.52]
[1747596832149,23.62684367,168.2,167.98,23.62684367]
[1747596832550,5.9444,168.17,167.98,23.62705533]
[1747596832846,23.62705533,168.2,167.95,12.93873658]
[1747596833049,23.62705533,168.16,168.04,5.9488]
[1747596833249,23.62705533,168.16,167.96,1.1907597]
[1747596833449,1.1767,168.19,167.98,23.62705533]
[1747596833650,23.62705533,168.21,168.02,23.62705533]
[1747596833847,23.62705533,168.25,168.03,3.9586]
[1747596834048,5.9432,168.21,168.12,5.9459]
[1747596834251,23.62705533,168.25,168.04,2.0006]
[1747596834552,5.9421,168.24,168.15,5.945]
[1747596834746,5.9421,168.24,168.06,23.62705533]
[1747596834747,1.1767,168.26,168.06,23.62705533]
[1747596835053,5.9418,168.24,168.15,5.945]
[1747596835241,1.1767,168.26,168.06,23.62705533]
[1747596836056,1.1767,168.26,168.14,5.9452]
[1747596836552,1.1767,168.26,168.06,23.62705533]
[1747596836752,1.1767,168.26,168.04,2.0006]
[1747596836953,23.62705533,168.22,168.04,2.0006]
[1747596837154,23.62705533,168.18,168.06,5.9479]
[1747596837654,1.1796,168.17,168.04,2.0006]
[1747596838748,23.62705533,168.14,167.97,1.9679]
[1747596838949,23.62705533,168.14,167.98,3.13761793]
[1747596839257,23.62705533,168.14,167.99,1.19054705]
[1747596839652,5.9475,168.09,168.01,5.9496]
[1747596839949,23.62705533,168.1,167.98,1.947]
[1747596840750,5.9474,168.09,168.02,5.9495]
[1747596840951,23.62705533,168.1,167.98,1.947]
[1747596841258,23.62705533,168.1,168.05,5.9485]
[1747596841452,27.0,168.16,167.98,1.947]
[1747596841656,23.62705533,168.14,167.99,1.9122]
[1747596842357,5.9465,168.11,168.04,5.9486]
[1747596842558,23.62705533,168.14,167.99,1.9122]
[1747596842849,5.9475,168.08,168.01,5.9496]
[1747596843054,23.62705533,168.1,168.01,5.9496]
[1747596843261,23.62705533,168.06,167.94,513.42]
[1747596843456,23.62705533,168.02,167.88,3.91]
[1747596843757,23.62705533,167.98,167.88,3.91]
[1747596843960,23.62705533,167.98,167.88,5.9545]
[1747596844255,23.62705533,167.94,167.84,513.74]
[1747596844458,23.62705533,167.94,167.81,1.9807]
[1747596844656,23.62705533,167.94,167.82,1.19175306]
[1747596844856,1.1803,167.93,167.82,1.19175306]
[1747596845261,23.62705533,167.86,167.82,1.19175306]
[1747596845651,23.62705533,167.86,167.82,0.00415306]
[1747596846057,5.9557,167.85,167.77,5.9584]
[1747596846253,23.62705533,167.86,167.74,160.68689541]
[1747596846461,23.62705533,167.86,167.75,1.19225037]
[1747596846664,23.62705533,167.82,167.75,1.19225037]
[1747596847763,23.62705533,167.82,167.76,5.9588]
[1747596847960,23.62705533,167.82,167.77,1.19210824]
[1747596848662,23.62705533,167.82,167.67,2.0242]
[1747596848663,23.62705533,167.82,167.78,1.19203719]
[1747596848865,23.74447182,167.79,167.6,2.0672]
[1747596849071,23.74616346,167.79,167.61,1.19324622]
[1747596849367,23.74616346,167.75,167.61,1.19324622]
[1747596849757,5.9603,167.72,167.61,1.19324622]
[1747596849954,23.74616346,167.75,167.61,1.19324622]
[1747596850256,29.70516346,167.76,167.61,1.19324622]
[1747596850460,23.74616346,167.76,167.61,1.19324622]
[1747596850759,23.74616346,167.8,167.61,1.19324622]
[1747596851164,23.74616346,167.84,167.62,23.74616346]
[1747596851356,23.74616346,167.88,167.66,23.74616346]
[1747596851560,23.74616346,167.88,167.67,1.9227]
[1747596851767,23.74616346,167.88,167.68,1.19274809]
[1747596852163,513.82,167.9,167.68,1.19274809]
[1747596852467,513.82,167.9,167.7,23.74616346]
[1747596852668,23.70630864,167.8,167.68,1.19274809]
[1747596852864,5.9565,167.83,167.73,5.9599]
[1747596853059,5.9565,167.83,167.68,1.19274809]
[1747596853271,23.70630864,167.85,167.68,1.19274809]
[1747596853567,23.70630864,167.85,167.65,514.5]
[1747596853768,513.82,167.9,167.65,514.5]
[1747596853970,5.9559,167.85,167.74,5.9592]
[1747596854278,513.82,167.9,167.65,514.5]
[1747596855570,5.9553,167.86,167.76,5.9587]
[1747596855771,513.82,167.9,167.65,514.5]
[1747596856072,1.19125617,167.89,167.65,514.5]
[1747596856571,1.19125617,167.89,167.7,25.80003029]
[1747596856776,1.19125617,167.89,167.71,1.9596]
[1747596856969,1.19125617,167.89,167.72,25.75176703]
[1747596857273,1.19125617,167.89,167.71,1.9596]
[1747596857673,1.19125617,167.89,167.82,5.9567]
[1747596857970,1.19125617,167.89,167.71,1.9596]
[1747596858871,5.9552,167.87,167.77,5.9582]
[1747596859073,1.19146908,167.86,167.71,1.9596]
[1747596859368,7.14706908,167.86,167.77,5.9582]
[1747596859668,1.19146908,167.86,167.71,1.9596]
[1747596859876,1.19146908,167.86,167.8,5.9571]
[1747596860069,1.19146908,167.86,167.71,1.9596]
[1747596860466,1.19146908,167.86,167.83,5.9561]
[1747596860969,1.19146908,167.86,167.71,1.9596]
[1747596861175,1.19146908,167.86,167.85,5.9556]
[1747596861562,27.0,167.98,167.76,514.54]
[1747596861768,27.0,167.98,167.77,1.8845]
[1747596862074,5.9517,167.97,167.88,5.9543]
[1747596862271,27.0,167.98,167.77,1.8845]
[1747596862673,28.19061793,167.98,167.77,1.8845]
[1747596863774,1.19061793,167.98,167.81,25.76423936]
[1747596863978,1.19061793,167.98,167.82,1.8748]
[1747596864571,5.9475,168.08,167.82,1.8748]
[1747596864774,1.18998036,168.07,167.82,1.8748]
[1747596865081,1.18998036,168.07,168.01,5.9499]
[1747596865275,1.18998036,168.07,167.92,514.54]
[1747596865471,1.18998036,168.07,167.93,1.9262]
[1747596866384,1.18998036,168.07,168.01,5.9498]
[1747596866682,1.18998036,168.07,167.93,1.9262]
[1747596866873,1.18998036,168.07,168.02,5.9496]
[1747596867279,1.18998036,168.07,167.94,2.0104]
[1747596867480,1.18998036,168.07,168.03,5.9492]
[1747596867874,1.18998036,168.07,167.94,2.0104]
[1747596868677,7.13808036,168.07,167.98,5.9507]
[1747596868985,7.13808036,168.07,167.94,2.0104]
[1747596869374,1.18998036,168.07,167.94,2.0104]
[1747596869885,5.9489,168.05,167.94,2.0104]
[1747596870184,5.9489,168.05,167.95,1.9207]
[1747596870481,1.18998036,168.07,167.95,1.9207]
[1747596870883,1.18998036,168.07,168.01,5.9498]
[1747596871183,1.18998036,168.07,167.95,1.9207]
[1747596872383,27.0,168.15,167.95,1.9207]
[1747596872585,27.0,168.14,167.95,1.9207]
[1747596873181,27.0,168.14,168.07,5.9477]
[1747596873381,5.9451,168.15,167.95,1.9207]
[1747596873581,27.0,168.2,167.95,1.9207]
[1747596874584,25.76423936,168.17,167.99,5.9506]
[1747596874783,25.76423936,168.17,167.95,1.9207]
[1747596874989,4.75538485,168.16,167.95,1.9207]
[1747596875287,25.76423936,168.11,167.92,514.54]
[1747596875487,25.76423936,168.11,167.83,11.9121]
[1747596875488,2.3821,168.1,167.84,6.0026]
[1747596875797,23.66961829,168.01,167.84,6.0026]
[1747596875976,2.3821,168.1,167.85,11.9112]
[1747596876182,5.9479,168.07,167.88,23.66961829]
[1747596876487,26.05171829,168.1,167.88,23.66961829]
[1747596876890,23.66961829,168.06,167.88,23.66961829]
[1747596877688,28.11774865,168.1,167.84,6.0026]
[1747596878284,4.76499674,168.09,167.84,6.0026]
[1747596878483,5.9487,168.05,167.96,5.9514]
[1747596878791,4.76499674,168.09,167.84,6.0026]
[1747596879593,5.9483,168.06,167.98,5.951]
[1747596879893,28.11774865,168.1,167.84,6.0026]
[1747596880391,2.69409807,168.09,167.84,6.0026]
[1747596880585,28.11774865,168.1,167.84,6.0026]
[1747596880781,2.6973133,168.09,167.84,6.0026]
[1747596880984,28.11774865,168.1,167.84,6.0026]
[1747596881794,5.949,168.04,167.84,6.0026]
[1747596882298,5.949,168.04,167.96,5.9515]
[1747596882694,5.949,168.04,167.84,6.0026]
[1747596882995,27.0,168.09,167.84,6.0026]
[1747596883298,2.70099539,168.08,167.96,5.9515]
[1747596883589,27.0,168.07,167.84,6.0026]
[1747596883893,27.0,168.06,167.93,5.9525]
[1747596884098,27.0,168.05,167.84,6.0026]
[1747596884298,27.0,168.04,167.84,6.0026]
[1747596884487,5.9495,168.03,167.84,6.0026]
[1747596884796,27.0,168.04,167.84,6.0026]
[1747596884988,27.0,168.04,167.94,5.9522]
[1747596885193,27.0,168.04,167.84,6.0026]
[1747596885697,27.0,168.04,167.98,5.9509]
[1747596885899,541.12,168.09,167.84,6.0026]
[1747596886100,29.70356817,168.08,167.84,6.0026]
[1747596886299,2.70356817,168.07,167.84,6.0026]
[1747596886487,2.70356817,168.06,167.84,6.0026]
[1747596886691,27.0,168.08,167.84,6.0026]
[1747596886891,2.70394196,168.07,167.84,6.0026]
[1747596887198,27.0,168.08,167.84,6.0026]
[1747596887199,2.70394196,168.06,167.84,6.0026]
[1747596887398,25.73564865,168.04,167.84,6.0026]
[1747596887603,4.78284354,168.05,167.84,6.0026]
[1747596887898,5.9496,168.02,167.84,6.0026]
[1747596888100,4.78284354,168.05,167.85,11.9113]
[1747596888301,4.78284354,168.05,167.84,6.0026]
[1747596888502,4.78284354,168.05,167.84,23.8426]
[1747596888797,4.78284354,168.05,167.85,43.57564865]
[1747596889403,1.68234354,168.05,167.9,43.57564865]
[1747596889694,30.1988,168.15,167.91,17.84]
[1747596889999,5.9465,168.11,167.92,11.9062]
[1747596890192,30.1988,168.15,167.92,11.9062]
[1747596890392,30.1988,168.15,167.84,29.77744865]
[1747596890592,5.9468,168.1,168.02,5.9493]
[1747596891303,5.9464,168.11,168.03,5.9491]
[1747596891598,27.0,168.14,167.88,11.9092]
[1747596891899,5.9471,168.1,168.02,5.9495]
[1747596892196,27.0,168.14,168.02,5.9495]
[1747596892395,27.0,168.14,167.88,11.9092]
[1747596892698,29.70844997,168.13,167.88,11.9092]
[1747596892892,2.7085419,168.12,167.88,11.9092]
[1747596893094,5.9479,168.07,167.88,11.9092]
[1747596893396,27.0,168.13,167.88,11.9092]
[1747596893600,5.9468,168.11,167.88,11.9092]
[1747596893794,27.0,168.13,167.88,11.9092]
[1747596894195,27.0,168.13,167.89,11.9085]
[1747596894596,27.0,168.13,167.9,2.0589]
[1747596895693,27.0,168.13,167.91,11.9071]
[1747596896095,5.9464,168.12,168.04,5.9486]
[1747596896299,28.93444865,168.15,167.94,514.06]
[1747596896501,2.71740747,168.14,167.95,3.7377]
[1747596896698,2.71973599,168.13,167.95,3.7377]
[1747596896896,28.93444865,168.15,167.95,3.7377]
[1747596897095,5.9471,168.1,167.95,3.7377]
[1747596898204,5.9473,168.09,167.95,3.7377]
[1747596898705,23.64272438,168.12,168.03,5.9492]
[1747596898904,5.9468,168.1,168.03,5.9492]
[1747596899109,5.9468,168.1,167.95,3.7377]
[1747596900110,5.9468,168.1,168.03,5.9491]
[1747596900308,23.64272438,168.12,167.95,3.7377]
[1747596900511,23.64272438,168.08,167.95,3.7377]
[1747596901005,23.64272438,168.08,167.95,1.8639]
[1747596901006,4.71645965,168.07,167.95,1.8639]
[1747596901211,2.72895965,168.06,167.99,5.9504]
[1747596901511,1.1865,168.06,167.94,514.06]
[1747596901705,3.1822,168.07,167.95,1.8611]
[1747596903905,3.1822,168.07,168.02,5.9496]
[1747596904211,1.1865,168.11,167.95,1.8611]
[1747596904410,2.7330427,168.1,168.03,5.9492]
[1747596904602,2.7330427,168.09,168.03,5.9492]
[1747596904805,2.7330427,168.09,167.95,1.8611]
[1747596905004,4.78248117,168.1,168.05,5.9486]
[1747596905204,4.78248117,168.1,167.96,23.64272438]
[1747596905612,2.73915627,168.09,167.96,23.64272438]
[1747596905803,4.78248117,168.1,167.96,23.64272438]
[1747596906001,1.1947,168.13,167.96,23.64272438]
[1747596906202,2.74062314,168.12,168.0,23.64272438]
[1747596906411,27.0,168.14,168.01,4.013]
[1747596906606,2.74241971,168.13,168.01,4.013]
[1747596906911,2.74241971,168.12,168.01,4.013]
[1747596907116,2.74241971,168.11,167.95,1.8611]
[1747596907314,2.74241971,168.11,167.96,1.9469]
[1747596907513,23.64272438,168.12,167.96,1.9469]
[1747596907514,5.9473,168.09,168.01,5.9499]
[1747596907719,2.74256039,168.08,167.96,1.9469]
[1747596907902,2.74256039,168.07,167.96,1.9469]
[1747596908109,1.1955,168.1,167.96,1.9469]
[1747596908307,2.74283652,168.09,167.96,1.9469]
[1747596908507,2.74283652,168.08,167.96,1.9469]
[1747596908713,4.7986817,168.11,167.96,1.9469]
[1747596909016,23.64272438,168.08,167.94,514.06]
[1747596909315,23.64272438,168.0,167.9,10.92691466]
[1747596909517,4.74887406,167.99,167.86,5.9846]
[1747596909809,23.64272438,168.04,167.86,5.9846]
[1747596910015,4.74822838,168.03,167.86,5.9846]
[1747596910210,2.74252838,168.02,167.86,5.9846]
[1747596910917,2.74252838,168.01,167.86,5.9846]
[1747596911122,26.38525276,168.0,167.84,513.92]
[1747596911320,2.74252838,167.99,167.84,513.92]
[1747596911511,4.7986817,168.01,167.84,663.2]
[1747596911812,2.74066886,168.0,167.84,686.84272438]
[1747596912015,4.7986817,168.01,167.84,686.84272438]
[1747596912016,2.74066886,167.99,167.84,686.84272438]
[1747596912313,4.7986817,168.01,167.84,686.84272438]
[1747596912519,2.74230977,168.0,167.84,686.84272438]
[1747596912816,4.7986817,168.01,167.84,686.84272438]
[1747596913515,4.7986817,168.0,167.88,23.64272438]
[1747596913707,4.7986817,168.0,167.89,150.02]
[1747596913912,4.7986817,168.0,167.85,11.9113]
[1747596913913,2.74087902,167.99,167.79,149.3]
[1747596914113,2.74087902,167.98,167.82,4.0566]
[1747596914413,23.68519558,167.95,167.82,2.0341]
[1747596914614,3.93917902,167.94,167.79,149.3]
[1747596914919,4.7986817,167.93,167.79,149.3]
[1747596915611,2.73550437,167.92,167.84,5.9559]
[1747596915919,2.73558111,167.91,167.8,149.3]
[1747596916117,2.73507428,167.9,167.8,149.3]
[1747596916417,2.73507428,167.89,167.8,149.3]
[1747596916617,3.92607428,167.89,167.74,514.08]
[1747596916914,23.68519558,167.87,167.74,514.08]
[1747596917119,23.68519558,167.83,167.7,363.76327432]
[1747596917418,29.64019558,167.87,167.71,1.19253473]
[1747596917620,1.191,167.89,167.71,1.19253473]
[1747596917823,4.7986817,167.86,167.82,5.9564]
[1747596918011,4.7986817,167.86,167.71,1.19253473]
[1747596918211,4.7986817,167.86,167.74,23.68519558]
[1747596918422,4.7986817,167.86,167.85,5.9557]
[1747596918925,8.17e-05,167.86,167.85,5.9557]
[1747596919526,5.35176041,167.96,167.95,5.9521]
[1747596920016,6.041e-05,167.96,167.95,5.9521]
[1747596920223,3.127,168.05,167.9,5.7639]
[1747596921124,3.127,168.05,167.9,150.7439]
[1747596921316,3.127,168.05,167.89,145.66]
[1747596921724,2.72509341,168.04,167.96,5.9517]